[Event "Titled Tuesday Blitz September 27 Early 2022"]
[White "Ilkhomi, Jaloliddin"]
[Black "Przybylski, Wojciech"]
[WhiteFideId "14700948"]
[BlackFideId "1117599"]
[WhiteElo "1440"]
[BlackElo "2133"]
[Result "0-1"]
[Round "08"]
[TimeControl "180+1"]
[Date "2022.09.27"]
[WhiteClock "0:00:05"]
[BlackClock "0:00:05"]

1. d4 {[%clk 0:03:00]}  Nf6 {[%clk 0:02:55]} 2. Bf4 {[%clk 0:02:58]}  b6 {[%clk 0:02:51]} 3. Nd2 {[%clk 0:02:57]}  Bb7 {[%clk 0:02:52]} 4. c3 {[%clk 0:02:55]}  g6 {[%clk 0:02:51]} 5. Ngf3 {[%clk 0:02:55]}  Bg7 {[%clk 0:02:51]} 6. e3 {[%clk 0:02:56]}  O-O {[%clk 0:02:51]} 7. Bd3 {[%clk 0:02:56]}  c5 {[%clk 0:02:51]} 8. h3 {[%clk 0:02:57]}  d5 {[%clk 0:02:50]} 9. O-O {[%clk 0:02:57]}  Nbd7 {[%clk 0:02:50]} 10. Ne5 {[%clk 0:02:57]}  Ne4 {[%clk 0:02:49]} 11. Nxd7 {[%clk 0:02:57]}  Nxd2 {[%clk 0:02:45]} 12. Nxf8 {[%clk 0:02:52]}  Nxf1 {[%clk 0:02:44]} 13. Nxg6 {[%clk 0:02:48]}  hxg6 {[%clk 0:02:35]} 14. Qxf1 {[%clk 0:02:46]}  c4 {[%clk 0:02:32]} 15. Bc2 {[%clk 0:02:46]}  b5 {[%clk 0:02:29]} 16. Re1 {[%clk 0:02:46]}  f5 {[%clk 0:02:28]} 17. f3 {[%clk 0:02:45]}  e6 {[%clk 0:02:26]} 18. e4 {[%clk 0:02:46]}  g5 {[%clk 0:02:25]} 19. Bd2 {[%clk 0:02:38]}  f4 {[%clk 0:02:25]} 20. exd5 {[%clk 0:02:38]}  Bxd5 {[%clk 0:02:24]} 21. Be4 {[%clk 0:02:37]}  a6 {[%clk 0:02:19]} 22. Qe2 {[%clk 0:02:36]}  Kf7 {[%clk 0:02:14]} 23. h4 {[%clk 0:02:31]}  Bf6 {[%clk 0:02:09]} 24. hxg5 {[%clk 0:02:15]}  Bxg5 {[%clk 0:02:09]} 25. Bxd5 {[%clk 0:02:15]}  Qxd5 {[%clk 0:02:08]} 26. Qe4 {[%clk 0:02:15]}  Rg8 {[%clk 0:01:17]} 27. Bxf4 {[%clk 0:02:01]}  Bf6 {[%clk 0:01:11]} 28. Qxd5 {[%clk 0:01:47]}  exd5 {[%clk 0:01:10]} 29. g4 {[%clk 0:01:41]}  b4 {[%clk 0:01:08]} 30. Be5 {[%clk 0:01:38]}  Bh4 {[%clk 0:01:07]} 31. Re2 {[%clk 0:01:37]}  a5 {[%clk 0:01:06]} 32. cxb4 {[%clk 0:01:32]}  axb4 {[%clk 0:01:06]} 33. Bd6 {[%clk 0:01:33]}  Bf6 {[%clk 0:00:37]} 34. Bxb4 {[%clk 0:01:23]}  Bxd4+ {[%clk 0:00:36]} 35. Kg2 {[%clk 0:01:24]}  Bf6 {[%clk 0:00:32]} 36. Kg3 {[%clk 0:01:17]}  d4 {[%clk 0:00:30]} 37. f4 {[%clk 0:01:17]}  d3 {[%clk 0:00:30]} 38. Rd2 {[%clk 0:01:14]}  Bd4 {[%clk 0:00:17]} 39. Kf3 {[%clk 0:01:12]}  Re8 {[%clk 0:00:14]} 40. f5 {[%clk 0:01:02]}  Re3+ {[%clk 0:00:12]} 41. Kf4 {[%clk 0:01:02]}  Re8 {[%clk 0:00:05]} 42. Rd1 {[%clk 0:00:29]}  Bxb2 {[%clk 0:00:03]} 43. g5 {[%clk 0:00:28]}  Be5+ {[%clk 0:00:02]} 44. Kf3 {[%clk 0:00:19]}  Rb8 {[%clk 0:00:02]} 45. a3 {[%clk 0:00:17]}  Rd8 {[%clk 0:00:01]} 46. Ke4 {[%clk 0:00:17]}  Bb2 {[%clk 0:00:02]} 47. g6+ {[%clk 0:00:16]}  Kf6 {[%clk 0:00:01]} 48. Ke3 {[%clk 0:00:10]}  c3 {[%clk 0:00:01]} 49. Bxc3+ {[%clk 0:00:03]}  Bxc3 {[%clk 0:00:01]} 50. Rc1 {[%clk 0:00:03]}  Re8+ {[%clk 0:00:01]} 51. Kxd3 {[%clk 0:00:04]}  Bb2 {[%clk 0:00:02]} 52. Rc6+ {[%clk 0:00:04]}  Kxf5 {[%clk 0:00:02]} 53. g7 {[%clk 0:00:05]}  Bxg7 {[%clk 0:00:02]} 54. Kc2 {[%clk 0:00:06]}  Bd4 {[%clk 0:00:02]} 55. Kb3 {[%clk 0:00:06]}  Ke4 {[%clk 0:00:03]} 56. Rh6 {[%clk 0:00:06]}  Rb8+ {[%clk 0:00:03]} 57. Kc4 {[%clk 0:00:06]}  Rc8+ {[%clk 0:00:03]} 58. Kb5 {[%clk 0:00:07]}  Ra8 {[%clk 0:00:04]} 59. a4 {[%clk 0:00:07]}  Rb8+ {[%clk 0:00:04]} 60. Ka6 {[%clk 0:00:07]}  Be3 {[%clk 0:00:04]} 61. Rd6 {[%clk 0:00:06]}  Ke5 {[%clk 0:00:04]} 62. Rd3 {[%clk 0:00:06]}  Bd4 {[%clk 0:00:04]} 63. Rh3 {[%clk 0:00:05]}  Kd5 {[%clk 0:00:04]} 64. Rh5+ {[%clk 0:00:05]}  Kc6 {[%clk 0:00:05]} 65. a5 {[%clk 0:00:05]}  Ra8# {[%clk 0:00:05]} 0-1


[Site "https://www.chess.com"]

[Event "Titled Tuesday Blitz September 27 Early 2022"]
[White "Jaskolka, Tomasz"]
[Black "Wachinger, Guenther"]
[WhiteFideId "1170791"]
[BlackFideId "4604261"]
[WhiteElo "2073"]
[BlackElo "2212"]
[Result "1/2-1/2"]
[Round "08"]
[TimeControl "180+1"]
[Date "2022.09.27"]
[WhiteClock "0:00:16"]
[BlackClock "0:00:05"]

1. d4 {[%clk 0:03:00]}  Nf6 {[%clk 0:02:57]} 2. c4 {[%clk 0:03:00]}  e6 {[%clk 0:02:57]} 3. g3 {[%clk 0:03:00]}  c5 {[%clk 0:02:56]} 4. d5 {[%clk 0:03:00]}  exd5 {[%clk 0:02:56]} 5. cxd5 {[%clk 0:03:01]}  b5 {[%clk 0:02:57]} 6. a4 {[%clk 0:02:59]}  b4 {[%clk 0:02:56]} 7. Bg2 {[%clk 0:02:56]}  d6 {[%clk 0:02:57]} 8. Nd2 {[%clk 0:02:56]}  g6 {[%clk 0:02:57]} 9. Nc4 {[%clk 0:02:57]}  Bg7 {[%clk 0:02:58]} 10. Nf3 {[%clk 0:02:56]}  O-O {[%clk 0:02:53]} 11. O-O {[%clk 0:02:55]}  a5 {[%clk 0:02:49]} 12. Bf4 {[%clk 0:02:54]}  Ra6 {[%clk 0:02:48]} 13. Re1 {[%clk 0:02:49]}  Nh5 {[%clk 0:02:28]} 14. Bg5 {[%clk 0:02:46]}  Qc7 {[%clk 0:02:29]} 15. e4 {[%clk 0:02:43]}  Nd7 {[%clk 0:02:28]} 16. Qd3 {[%clk 0:02:24]}  Nb6 {[%clk 0:02:24]} 17. b3 {[%clk 0:02:19]}  Nxc4 {[%clk 0:02:22]} 18. Qxc4 {[%clk 0:02:19]}  Rb6 {[%clk 0:02:22]} 19. Rac1 {[%clk 0:02:17]}  Ba6 {[%clk 0:02:21]} 20. Qc2 {[%clk 0:02:18]}  c4 {[%clk 0:02:15]} 21. Re3 {[%clk 0:01:58]}  h6 {[%clk 0:02:06]} 22. Bf4 {[%clk 0:01:57]}  g5 {[%clk 0:02:04]} 23. Bxg5 {[%clk 0:01:58]}  hxg5 {[%clk 0:02:05]} 24. Nxg5 {[%clk 0:01:59]}  Qe7 {[%clk 0:01:56]} 25. h4 {[%clk 0:01:55]}  cxb3 {[%clk 0:01:55]} 26. Qxb3 {[%clk 0:01:51]}  Bh6 {[%clk 0:01:50]} 27. f4 {[%clk 0:01:42]}  Rc8 {[%clk 0:01:26]} 28. Rxc8+ {[%clk 0:01:30]}  Bxc8 {[%clk 0:01:27]} 29. e5 {[%clk 0:01:30]}  Bf5 {[%clk 0:01:23]} 30. exd6 {[%clk 0:01:28]}  Qxd6 {[%clk 0:01:24]} 31. Re8+ {[%clk 0:01:28]}  Kg7 {[%clk 0:01:24]} 32. Qb2+ {[%clk 0:01:26]}  Qf6 {[%clk 0:01:17]} 33. Qf2 {[%clk 0:01:26]}  b3 {[%clk 0:01:15]} 34. Ne6+ {[%clk 0:01:23]}  Rxe6 {[%clk 0:01:04]} 35. dxe6 {[%clk 0:01:23]}  b2 {[%clk 0:01:04]} 36. Rb8 {[%clk 0:01:14]}  b1=Q+ {[%clk 0:01:01]} 37. Rxb1 {[%clk 0:01:14]}  Bxb1 {[%clk 0:01:01]} 38. exf7 {[%clk 0:01:15]}  Qxf7 {[%clk 0:00:57]} 39. Qb2+ {[%clk 0:01:12]}  Qf6 {[%clk 0:00:52]} 40. Qxb1 {[%clk 0:01:12]}  Nxg3 {[%clk 0:00:52]} 41. Qb7+ {[%clk 0:01:09]}  Kh8 {[%clk 0:00:52]} 42. Qa8+ {[%clk 0:01:07]}  Bf8 {[%clk 0:00:51]} 43. Qxa5 {[%clk 0:01:06]}  Qxf4 {[%clk 0:00:51]} 44. Qc3+ {[%clk 0:01:01]}  Bg7 {[%clk 0:00:45]} 45. Qf3 {[%clk 0:01:01]}  Bd4+ {[%clk 0:00:41]} 46. Kh2 {[%clk 0:01:00]}  Nf1+ {[%clk 0:00:41]} 47. Kh3 {[%clk 0:01:00]}  Qh2+ {[%clk 0:00:39]} 48. Kg4 {[%clk 0:01:01]}  Ne3+ {[%clk 0:00:39]} 49. Kh5 {[%clk 0:00:53]}  Qe5+ {[%clk 0:00:38]} 50. Kg6 {[%clk 0:00:49]}  Qg7+ {[%clk 0:00:27]} 51. Kh5 {[%clk 0:00:49]}  Qh7+ {[%clk 0:00:18]} 52. Kg5 {[%clk 0:00:49]}  Qg7+ {[%clk 0:00:18]} 53. Kh5 {[%clk 0:00:50]}  Nxg2 {[%clk 0:00:18]} 54. Qa8+ {[%clk 0:00:48]}  Kh7 {[%clk 0:00:18]} 55. Qe4+ {[%clk 0:00:49]}  Kg8 {[%clk 0:00:18]} 56. Qe8+ {[%clk 0:00:46]}  Kh7 {[%clk 0:00:18]} 57. Qe4+ {[%clk 0:00:46]}  Kg8 {[%clk 0:00:18]} 58. Qe8+ {[%clk 0:00:46]}  Qf8 {[%clk 0:00:19]} 59. Qg6+ {[%clk 0:00:43]}  Kh8 {[%clk 0:00:18]} 60. Qxg2 {[%clk 0:00:42]}  Be3 {[%clk 0:00:17]} 61. Kg4 {[%clk 0:00:31]}  Qf4+ {[%clk 0:00:15]} 62. Kh3 {[%clk 0:00:32]}  Qxa4 {[%clk 0:00:16]} 63. Qf3 {[%clk 0:00:25]}  Bf4 {[%clk 0:00:15]} 64. Qh5+ {[%clk 0:00:25]}  Kg7 {[%clk 0:00:14]} 65. Qg4+ {[%clk 0:00:25]}  Kf6 {[%clk 0:00:15]} 66. Qf3 {[%clk 0:00:22]}  Qd4 {[%clk 0:00:12]} 67. Kg4 {[%clk 0:00:19]}  Ke5 {[%clk 0:00:13]} 68. Qe2+ {[%clk 0:00:19]}  Be3+ {[%clk 0:00:13]} 69. Kh3 {[%clk 0:00:19]}  Qf4 {[%clk 0:00:13]} 70. Qb5+ {[%clk 0:00:19]}  Ke6 {[%clk 0:00:12]} 71. Qc6+ {[%clk 0:00:18]}  Ke7 {[%clk 0:00:12]} 72. Qb7+ {[%clk 0:00:18]}  Kd8 {[%clk 0:00:12]} 73. Qd5+ {[%clk 0:00:17]}  Kc7 {[%clk 0:00:12]} 74. Qa5+ {[%clk 0:00:17]}  Kc6 {[%clk 0:00:12]} 75. Qa6+ {[%clk 0:00:17]}  Kc7 {[%clk 0:00:11]} 76. Qa5+ {[%clk 0:00:16]}  Bb6 {[%clk 0:00:09]} 77. Qc3+ {[%clk 0:00:16]}  Kb7 {[%clk 0:00:09]} 78. Qg7+ {[%clk 0:00:14]}  Bc7 {[%clk 0:00:09]} 79. Qg2+ {[%clk 0:00:13]}  Kb8 {[%clk 0:00:07]} 80. Qb2+ {[%clk 0:00:13]}  Kc8 {[%clk 0:00:07]} 81. Qh8+ {[%clk 0:00:13]}  Kb7 {[%clk 0:00:06]} 82. Qb2+ {[%clk 0:00:13]}  Ka6 {[%clk 0:00:07]} 83. Qa3+ {[%clk 0:00:14]}  Ba5 {[%clk 0:00:06]} 84. Qd3+ {[%clk 0:00:13]}  Kb6 {[%clk 0:00:07]} 85. Qd8+ {[%clk 0:00:12]}  Kb5 {[%clk 0:00:06]} 86. Qd7+ {[%clk 0:00:11]}  Kb4 {[%clk 0:00:05]} 87. Qe7+ {[%clk 0:00:12]}  Kb3 {[%clk 0:00:05]} 88. Qe6+ {[%clk 0:00:12]}  Ka4 {[%clk 0:00:04]} 89. Qg4 {[%clk 0:00:12]}  Qxg4+ {[%clk 0:00:03]} 90. Kxg4 {[%clk 0:00:13]}  Bd2 {[%clk 0:00:04]} 91. Kf5 {[%clk 0:00:13]}  Kb3 {[%clk 0:00:04]} 92. Kg6 {[%clk 0:00:14]}  Kc2 {[%clk 0:00:05]} 93. h5 {[%clk 0:00:15]}  Kd1 {[%clk 0:00:05]} 94. h6 {[%clk 0:00:16]}  Bxh6 {[%clk 0:00:05]} 1/2-1/2


[Site "https://www.chess.com"]

[Event "Titled Tuesday Blitz September 27 Early 2022"]
[White "Jones, Daniel"]
[Black "Rangel, Daniel"]
[WhiteFideId "2019655"]
[BlackFideId "2124475"]
[WhiteElo "2351"]
[BlackElo "2225"]
[Result "1-0"]
[Round "08"]
[TimeControl "180+1"]
[Date "2022.09.27"]
[WhiteClock "0:00:28"]
[BlackClock "0:00:11"]

1. f4 {[%clk 0:02:45]}  Nf6 {[%clk 0:02:59]} 2. Nf3 {[%clk 0:02:45]}  d5 {[%clk 0:02:59]} 3. g3 {[%clk 0:02:45]}  c5 {[%clk 0:02:59]} 4. Bg2 {[%clk 0:02:46]}  Nc6 {[%clk 0:03:00]} 5. d3 {[%clk 0:02:47]}  h5 {[%clk 0:02:56]} 6. h3 {[%clk 0:02:46]}  d4 {[%clk 0:02:55]} 7. e4 {[%clk 0:02:45]}  dxe3 {[%clk 0:02:55]} 8. Bxe3 {[%clk 0:02:45]}  Nd5 {[%clk 0:02:50]} 9. Bf2 {[%clk 0:02:39]}  h4 {[%clk 0:02:48]} 10. Nxh4 {[%clk 0:02:39]}  Rxh4 {[%clk 0:02:47]} 11. gxh4 {[%clk 0:02:39]}  Nxf4 {[%clk 0:02:47]} 12. Bxc6+ {[%clk 0:02:40]}  bxc6 {[%clk 0:02:47]} 13. Qf3 {[%clk 0:02:40]}  Nd5 {[%clk 0:02:40]} 14. Nd2 {[%clk 0:02:35]}  e5 {[%clk 0:02:27]} 15. O-O-O {[%clk 0:02:32]}  Qa5 {[%clk 0:02:25]} 16. a3 {[%clk 0:02:24]}  Be6 {[%clk 0:02:06]} 17. Qh5 {[%clk 0:02:11]}  Nc3 {[%clk 0:01:28]} 18. Rde1 {[%clk 0:02:03]}  Na2+ {[%clk 0:01:24]} 19. Kd1 {[%clk 0:01:58]}  O-O-O {[%clk 0:01:21]} 20. Qxe5 {[%clk 0:01:53]}  Bd6 {[%clk 0:01:10]} 21. Qxg7 {[%clk 0:01:51]}  c4 {[%clk 0:01:09]} 22. Rxe6 {[%clk 0:01:43]}  cxd3 {[%clk 0:01:01]} 23. Re4 {[%clk 0:01:32]}  dxc2+ {[%clk 0:00:57]} 24. Kxc2 {[%clk 0:01:31]}  Bb4 {[%clk 0:00:17]} 25. Nb3 {[%clk 0:01:20]}  Qd5 {[%clk 0:00:10]} 26. Qd4 {[%clk 0:00:55]}  Qf5 {[%clk 0:00:06]} 27. Qe3 {[%clk 0:00:47]}  Ba5 {[%clk 0:00:03]} 28. Nxa5 {[%clk 0:00:42]}  Qxa5 {[%clk 0:00:01]} 29. Rc4 {[%clk 0:00:41]}  Nb4+ {[%clk 0:00:01]} 30. Rxb4 {[%clk 0:00:38]}  Qf5+ {[%clk 0:00:02]} 31. Kb3 {[%clk 0:00:37]}  Qd5+ {[%clk 0:00:02]} 32. Rc4 {[%clk 0:00:37]}  Qxh1 {[%clk 0:00:02]} 33. Ka2 {[%clk 0:00:36]}  Qd5 {[%clk 0:00:02]} 34. Qb3 {[%clk 0:00:35]}  Qe6 {[%clk 0:00:02]} 35. Rc3 {[%clk 0:00:34]}  Qxb3+ {[%clk 0:00:02]} 36. Rxb3 {[%clk 0:00:35]}  Rd2 {[%clk 0:00:03]} 37. Bxa7 {[%clk 0:00:35]}  Rg2 {[%clk 0:00:04]} 38. Bd4 {[%clk 0:00:31]}  Kd7 {[%clk 0:00:04]} 39. Bf6 {[%clk 0:00:31]}  Ke6 {[%clk 0:00:04]} 40. Bg5 {[%clk 0:00:31]}  Rh2 {[%clk 0:00:04]} 41. Re3+ {[%clk 0:00:32]}  Kd5 {[%clk 0:00:04]} 42. Rf3 {[%clk 0:00:32]}  c5 {[%clk 0:00:05]} 43. Rxf7 {[%clk 0:00:31]}  c4 {[%clk 0:00:05]} 44. Rf3 {[%clk 0:00:29]}  Rg2 {[%clk 0:00:04]} 45. Rc3 {[%clk 0:00:29]}  Kd4 {[%clk 0:00:03]} 46. Bf6+ {[%clk 0:00:29]}  Kc5 {[%clk 0:00:04]} 47. h5 {[%clk 0:00:29]}  Kb5 {[%clk 0:00:03]} 48. h6 {[%clk 0:00:30]}  Rg6 {[%clk 0:00:03]} 49. a4+ {[%clk 0:00:29]}  Kxa4 {[%clk 0:00:02]} 50. Rxc4+ {[%clk 0:00:29]}  Kb5 {[%clk 0:00:03]} 51. Rf4 {[%clk 0:00:28]}  Rxh6 {[%clk 0:00:02]} 52. h4 {[%clk 0:00:28]}  Rh5 {[%clk 0:00:02]} 53. Rg4 {[%clk 0:00:27]}  Kc6 {[%clk 0:00:03]} 54. Bg5 {[%clk 0:00:26]}  Kd7 {[%clk 0:00:03]} 55. b4 {[%clk 0:00:26]}  Rh8 {[%clk 0:00:03]} 56. Kb3 {[%clk 0:00:25]}  Ra8 {[%clk 0:00:04]} 57. Rd4+ {[%clk 0:00:24]}  Ke6 {[%clk 0:00:04]} 58. b5 {[%clk 0:00:24]}  Ke5 {[%clk 0:00:04]} 59. Rb4 {[%clk 0:00:24]}  Kd5 {[%clk 0:00:03]} 60. b6 {[%clk 0:00:23]}  Kc6 {[%clk 0:00:04]} 61. b7 {[%clk 0:00:23]}  Rb8 {[%clk 0:00:04]} 62. Bf4 {[%clk 0:00:23]}  Rxb7 {[%clk 0:00:04]} 63. Rxb7 {[%clk 0:00:24]}  Kxb7 {[%clk 0:00:04]} 64. h5 {[%clk 0:00:24]}  Kc6 {[%clk 0:00:05]} 65. h6 {[%clk 0:00:25]}  Kd5 {[%clk 0:00:06]} 66. h7 {[%clk 0:00:26]}  Ke4 {[%clk 0:00:06]} 67. h8=Q {[%clk 0:00:26]}  Kxf4 {[%clk 0:00:07]} 68. Qe8 {[%clk 0:00:26]}  Kf5 {[%clk 0:00:08]} 69. Kc3 {[%clk 0:00:26]}  Kf6 {[%clk 0:00:08]} 70. Kd4 {[%clk 0:00:27]}  Kg7 {[%clk 0:00:09]} 71. Qe6 {[%clk 0:00:26]}  Kh7 {[%clk 0:00:10]} 72. Qg4 {[%clk 0:00:26]}  Kh8 {[%clk 0:00:10]} 73. Ke5 {[%clk 0:00:27]}  Kh7 {[%clk 0:00:11]} 74. Kf6 {[%clk 0:00:28]} 1-0


[Site "https://www.chess.com"]

[Event "Titled Tuesday Blitz September 27 Early 2022"]
[White "Kamsky, Gata"]
[Black "Erenberg, Ariel"]
[WhiteFideId "2000024"]
[BlackFideId "2811634"]
[WhiteElo "2666"]
[BlackElo "2243"]
[Result "0-1"]
[Round "08"]
[TimeControl "180+1"]
[Date "2022.09.27"]
[WhiteClock "0:00:19"]
[BlackClock "0:00:14"]

1. e4 {[%clk 0:03:00]}  c6 {[%clk 0:02:59]} 2. d4 {[%clk 0:02:56]}  d5 {[%clk 0:03:00]} 3. exd5 {[%clk 0:02:55]}  cxd5 {[%clk 0:03:00]} 4. Bd3 {[%clk 0:02:55]}  Nf6 {[%clk 0:02:53]} 5. c3 {[%clk 0:02:54]}  Bg4 {[%clk 0:02:52]} 6. Nf3 {[%clk 0:02:48]}  Nc6 {[%clk 0:02:42]} 7. Bf4 {[%clk 0:02:46]}  e6 {[%clk 0:02:35]} 8. Nbd2 {[%clk 0:02:45]}  Bd6 {[%clk 0:02:34]} 9. Bg3 {[%clk 0:02:44]}  O-O {[%clk 0:02:31]} 10. O-O {[%clk 0:02:43]}  a6 {[%clk 0:02:27]} 11. a4 {[%clk 0:02:42]}  Rc8 {[%clk 0:02:19]} 12. Re1 {[%clk 0:02:36]}  Bxg3 {[%clk 0:02:05]} 13. hxg3 {[%clk 0:02:35]}  Qd6 {[%clk 0:01:51]} 14. Qb3 {[%clk 0:02:29]}  Na5 {[%clk 0:01:46]} 15. Qa3 {[%clk 0:02:28]}  Qc7 {[%clk 0:01:38]} 16. Ne5 {[%clk 0:02:24]}  Bf5 {[%clk 0:01:37]} 17. Bf1 {[%clk 0:02:06]}  Nc6 {[%clk 0:01:29]} 18. Nxc6 {[%clk 0:01:57]}  Qxc6 {[%clk 0:01:30]} 19. a5 {[%clk 0:01:57]}  Ne4 {[%clk 0:01:19]} 20. Nb3 {[%clk 0:01:47]}  Qc7 {[%clk 0:01:11]} 21. Re3 {[%clk 0:01:42]}  h5 {[%clk 0:01:10]} 22. Qb4 {[%clk 0:01:36]}  Rfe8 {[%clk 0:01:03]} 23. Bd3 {[%clk 0:01:33]}  Nd6 {[%clk 0:01:00]} 24. Be2 {[%clk 0:01:33]}  Bg6 {[%clk 0:00:57]} 25. Nc5 {[%clk 0:01:31]}  Re7 {[%clk 0:00:49]} 26. Qa3 {[%clk 0:01:24]}  Nf5 {[%clk 0:00:46]} 27. Rf3 {[%clk 0:01:23]}  e5 {[%clk 0:00:40]} 28. b4 {[%clk 0:00:58]}  e4 {[%clk 0:00:32]} 29. Rf4 {[%clk 0:00:52]}  e3 {[%clk 0:00:27]} 30. Bf3 {[%clk 0:00:32]}  exf2+ {[%clk 0:00:27]} 31. Kxf2 {[%clk 0:00:32]}  Nxg3 {[%clk 0:00:25]} 32. Rh4 {[%clk 0:00:27]}  Nf5 {[%clk 0:00:22]} 33. Rh3 {[%clk 0:00:27]}  Qf4 {[%clk 0:00:21]} 34. Qc1 {[%clk 0:00:26]}  Re3 {[%clk 0:00:20]} 35. Kg1 {[%clk 0:00:22]}  Rce8 {[%clk 0:00:17]} 36. Bxd5 {[%clk 0:00:21]}  Ng3 {[%clk 0:00:15]} 37. Rxg3 {[%clk 0:00:19]}  Qxg3 {[%clk 0:00:14]} 0-1


[Site "https://www.chess.com"]

[Event "Titled Tuesday Blitz September 27 Early 2022"]
[White "Kodinets, Konstantin L."]
[Black "Narayanan, Srinath"]
[WhiteFideId "4122011"]
[BlackFideId "5018420"]
[WhiteElo "2679"]
[BlackElo "2790"]
[Result "1-0"]
[Round "08"]
[TimeControl "180+1"]
[Date "2022.09.27"]
[WhiteClock "0:00:23"]
[BlackClock "0:00:13"]

1. d4 {[%clk 0:03:00]}  f5 {[%clk 0:02:54]} 2. Nf3 {[%clk 0:03:00]}  Nf6 {[%clk 0:02:53]} 3. Bf4 {[%clk 0:03:00]}  g6 {[%clk 0:02:52]} 4. h3 {[%clk 0:03:00]}  Bg7 {[%clk 0:02:53]} 5. e3 {[%clk 0:03:01]}  O-O {[%clk 0:02:51]} 6. Be2 {[%clk 0:03:02]}  d6 {[%clk 0:02:51]} 7. O-O {[%clk 0:03:02]}  Nbd7 {[%clk 0:02:52]} 8. c4 {[%clk 0:02:51]}  h6 {[%clk 0:02:47]} 9. Nc3 {[%clk 0:02:50]}  b6 {[%clk 0:02:47]} 10. b4 {[%clk 0:02:49]}  Bb7 {[%clk 0:02:46]} 11. Bh2 {[%clk 0:02:49]}  g5 {[%clk 0:02:44]} 12. c5 {[%clk 0:02:48]}  Kh7 {[%clk 0:02:39]} 13. Qb3 {[%clk 0:02:41]}  Ne4 {[%clk 0:02:35]} 14. Nxe4 {[%clk 0:02:40]}  fxe4 {[%clk 0:02:25]} 15. Nd2 {[%clk 0:02:37]}  Rb8 {[%clk 0:02:11]} 16. Qc2 {[%clk 0:02:14]}  bxc5 {[%clk 0:02:04]} 17. bxc5 {[%clk 0:02:12]}  Kh8 {[%clk 0:02:04]} 18. c6 {[%clk 0:02:02]}  Ba8 {[%clk 0:01:47]} 19. cxd7 {[%clk 0:01:59]}  Qxd7 {[%clk 0:01:47]} 20. Rac1 {[%clk 0:01:58]}  c5 {[%clk 0:01:40]} 21. dxc5 {[%clk 0:01:56]}  Rb2 {[%clk 0:01:40]} 22. c6 {[%clk 0:01:26]}  Qe8 {[%clk 0:01:28]} 23. Qd1 {[%clk 0:01:18]}  Bxc6 {[%clk 0:01:28]} 24. Bc4 {[%clk 0:01:13]}  Ba4 {[%clk 0:01:19]} 25. Bb3 {[%clk 0:01:13]}  Rxa2 {[%clk 0:01:18]} 26. Bxa4 {[%clk 0:01:11]}  Rxa4 {[%clk 0:01:19]} 27. Rc7 {[%clk 0:01:05]}  Ra2 {[%clk 0:01:15]} 28. Nxe4 {[%clk 0:01:03]}  a5 {[%clk 0:00:54]} 29. Qd5 {[%clk 0:00:59]}  Ra4 {[%clk 0:00:48]} 30. Rfc1 {[%clk 0:00:47]}  Qd8 {[%clk 0:00:40]} 31. Bg3 {[%clk 0:00:33]}  Rb4 {[%clk 0:00:27]} 32. Qe6 {[%clk 0:00:28]}  Qa8 {[%clk 0:00:23]} 33. Rxe7 {[%clk 0:00:26]}  a4 {[%clk 0:00:22]} 34. Rcc7 {[%clk 0:00:26]}  Rg8 {[%clk 0:00:21]} 35. Bxd6 {[%clk 0:00:25]}  a3 {[%clk 0:00:19]} 36. Rxg7 {[%clk 0:00:24]}  Rxg7 {[%clk 0:00:13]} 37. Be5 {[%clk 0:00:23]} 1-0


[Site "https://www.chess.com"]

[Event "Titled Tuesday Blitz September 27 Early 2022"]
[White "Kostiukov, Alexandr"]
[Black "De Souza, Cristiano Gomes"]
[WhiteFideId "14108100"]
[BlackFideId "2151758"]
[WhiteElo "2202"]
[BlackElo "2068"]
[Result "1-0"]
[Round "08"]
[TimeControl "180+1"]
[Date "2022.09.27"]
[WhiteClock "0:01:32"]
[BlackClock "0:01:59"]

1. g3 {[%clk 0:02:53]}  Nf6 {[%clk 0:02:58]} 2. Bg2 {[%clk 0:02:54]}  g6 {[%clk 0:02:58]} 3. Nf3 {[%clk 0:02:52]}  Bg7 {[%clk 0:02:59]} 4. O-O {[%clk 0:02:53]}  O-O {[%clk 0:02:59]} 5. c4 {[%clk 0:02:53]}  Nc6 {[%clk 0:02:57]} 6. d4 {[%clk 0:02:53]}  d6 {[%clk 0:02:56]} 7. Nc3 {[%clk 0:02:53]}  Bf5 {[%clk 0:02:56]} 8. Nh4 {[%clk 0:02:50]}  Bd7 {[%clk 0:02:55]} 9. e4 {[%clk 0:02:49]}  e5 {[%clk 0:02:54]} 10. d5 {[%clk 0:02:49]}  Nd4 {[%clk 0:02:54]} 11. h3 {[%clk 0:02:48]}  Nh5 {[%clk 0:02:50]} 12. Nf3 {[%clk 0:02:47]}  Nxf3+ {[%clk 0:02:49]} 13. Qxf3 {[%clk 0:02:46]}  f5 {[%clk 0:02:48]} 14. exf5 {[%clk 0:02:46]}  Rxf5 {[%clk 0:02:39]} 15. Qe2 {[%clk 0:02:45]}  Rf7 {[%clk 0:02:38]} 16. Ne4 {[%clk 0:02:44]}  Nf6 {[%clk 0:02:36]} 17. Ng5 {[%clk 0:02:39]}  Re7 {[%clk 0:02:36]} 18. Bd2 {[%clk 0:02:24]}  h6 {[%clk 0:02:33]} 19. Ne4 {[%clk 0:02:23]}  Nxe4 {[%clk 0:02:32]} 20. Qxe4 {[%clk 0:02:24]}  Bf5 {[%clk 0:02:30]} 21. Qe2 {[%clk 0:02:23]}  h5 {[%clk 0:02:29]} 22. g4 {[%clk 0:02:20]}  hxg4 {[%clk 0:02:28]} 23. hxg4 {[%clk 0:02:21]}  Bd7 {[%clk 0:02:28]} 24. Be4 {[%clk 0:02:21]}  Qe8 {[%clk 0:02:26]} 25. f3 {[%clk 0:02:20]}  Kf7 {[%clk 0:02:22]} 26. Bg5 {[%clk 0:02:18]}  Bf6 {[%clk 0:02:20]} 27. Qe3 {[%clk 0:02:15]}  Qh8 {[%clk 0:02:18]} 28. Kg2 {[%clk 0:02:10]}  Qg7 {[%clk 0:02:17]} 29. Rh1 {[%clk 0:02:07]}  Rh8 {[%clk 0:02:15]} 30. Rxh8 {[%clk 0:02:04]}  Qxh8 {[%clk 0:02:15]} 31. Rh1 {[%clk 0:02:03]}  Qg7 {[%clk 0:02:15]} 32. Rh6 {[%clk 0:01:59]}  Re8 {[%clk 0:02:09]} 33. Rxg6 {[%clk 0:01:50]}  Qxg6 {[%clk 0:02:09]} 34. Bxg6+ {[%clk 0:01:49]}  Kxg6 {[%clk 0:02:10]} 35. Bxf6 {[%clk 0:01:49]}  Kxf6 {[%clk 0:02:10]} 36. Qh6+ {[%clk 0:01:50]}  Ke7 {[%clk 0:02:11]} 37. Qh7+ {[%clk 0:01:38]}  Kd8 {[%clk 0:02:09]} 38. Qf7 {[%clk 0:01:38]}  Re7 {[%clk 0:02:08]} 39. Qf6 {[%clk 0:01:37]}  Ke8 {[%clk 0:02:05]} 40. g5 {[%clk 0:01:35]}  Rf7 {[%clk 0:01:59]} 41. Qh8+ {[%clk 0:01:35]}  Ke7 {[%clk 0:01:59]} 42. g6 {[%clk 0:01:32]} 1-0


[Site "https://www.chess.com"]